bitfinex/quotes_ETHUSD_20241009
["timestamp","ask_amount","ask_price","bid_price","bid_amount"]
[1728446753040,4.08881,2445.7,2445.2,0.6020633]
[1728446754272,8.17772,2445.7,2445.2,0.6020633]
[1728446754578,4.08881,2445.7,2445.2,0.6020633]
[1728446754788,4.08881,2445.7,2445.3,0.46917533]
[1728446755946,4.08898,2445.6,2445.3,0.46917533]
[1728446757547,4.08881,2445.7,2445.3,0.46917533]
[1728446757770,8.17772,2445.7,2445.3,0.46917533]
[1728446757986,4.08881,2445.7,2445.3,0.46917533]
[1728446758481,8.17772,2445.7,2445.3,0.46917533]
[1728446758678,4.08881,2445.7,2445.3,0.46917533]
[1728446762988,4.08927,2445.5,2445.0,1.3835]
[1728446763174,0.08253956,2445.6,2445.1,4.08972]
[1728446763371,0.08240816,2445.4,2445.2,4.0896]
[1728446763543,4.0889,2445.7,2445.2,4.0896]
[1728446763750,8.17784,2445.7,2445.2,0.956282]
[1728446764078,0.08261578,2445.6,2445.2,0.956282]
[1728446764483,4.17159578,2445.6,2445.2,0.956282]
[1728446764892,4.17159578,2445.6,2445.1,4.08972]
[1728446768068,4.17159578,2445.6,2445.2,4.08961]
[1728446768069,0.08261578,2445.6,2445.2,4.08961]
[1728446768279,0.08261578,2445.6,2445.1,4.08972]
[1728446768492,0.08261578,2445.6,2445.1,8.17944]
[1728446768643,0.08261578,2445.6,2445.1,4.08972]
[1728446768847,4.17159578,2445.6,2445.1,5.046048]
[1728446770386,0.08261578,2445.6,2445.1,5.046038]
[1728446770561,0.08261578,2445.6,2445.2,4.08955]
[1728446771273,0.37985535,2445.5,2445.2,4.08955]
[1728446771592,4.93707974,2445.7,2445.2,1.0519088]
[1728446771593,0.07951149,2445.4,2445.2,1.0519088]
[1728446771752,4.93707974,2445.7,2445.2,1.0519088]
[1728446771951,0.07971911,2445.6,2445.2,1.0519088]
[1728446772161,0.07971911,2445.6,2445.2,5.1414988]
[1728446772391,0.45959439,2445.6,2445.2,5.1414988]
[1728446772615,0.37987528,2445.5,2445.2,1.0519088]
[1728446772800,0.0795231,2445.4,2445.2,1.0519088]
[1728446773306,0.38032999,2445.3,2445.2,1.0519088]
[1728446773672,4.93717974,2445.6,2445.2,1.0519088]
[1728446773874,0.07941845,2445.3,2445.1,4.08971]
[1728446774099,4.93717974,2445.6,2445.1,4.08971]
[1728446774279,0.07931462,2445.2,2445.1,4.08971]
[1728446774487,0.84817974,2445.5,2445.1,4.08971]
[1728446774695,0.07931462,2445.2,2445.1,4.08971]
[1728446775011,0.84817974,2445.5,2445.1,4.637031]
[1728446775214,0.76461106,2445.4,2445.1,4.637031]
[1728446775416,0.38060317,2445.3,2445.1,4.637031]
[1728446775590,0.07931625,2445.2,2445.1,4.637031]
[1728446775917,0.84817974,2445.5,2445.1,4.637031]
[1728446776114,0.68503351,2445.4,2445.1,4.637031]
[1728446776277,0.68503351,2445.3,2445.2,1.0110491]
[1728446776611,0.76445359,2445.3,2445.2,1.0110491]
[1728446777306,1.46984655,2445.3,2445.2,1.0110491]
[1728446777875,1.46984655,2445.3,2445.2,5.1006891]
[1728446778212,3.37635642,2445.3,2445.2,5.1006891]
[1728446779471,2.55864509,2445.3,2445.2,1.0110491]
[1728446779819,1.87846907,2445.3,2445.2,1.0110491]
[1728446780978,1.87846907,2445.3,2445.2,5.1006891]
[1728446781174,0.82013894,2445.3,2445.2,5.1006891]
[1728446781377,1.84477763,2445.3,2445.2,5.1006891]
[1728446782194,1.6621335,2445.3,2445.2,5.1006891]
[1728446782389,1.13599126,2445.3,2445.2,5.1006891]
[1728446784178,2.40826087,2445.3,2445.2,5.1006891]
[1728446784519,1.13599126,2445.3,2445.2,5.1006891]
[1728446784685,2.40826087,2445.3,2445.2,5.1006891]
[1728446786231,2.40937782,2445.3,2445.2,5.1006891]
[1728446787529,2.41948464,2445.3,2445.2,5.1006891]
[1728446790200,2.55142482,2445.3,2445.2,5.1006891]
[1728446791388,2.55194776,2445.3,2445.2,5.1006891]
[1728446791543,2.85752137,2445.3,2445.2,5.1006891]
[1728446792034,2.72612903,2445.3,2445.2,5.1006891]
[1728446792642,4.5539358,2445.3,2445.2,5.1006891]
[1728446792811,2.85757632,2445.3,2445.2,5.1006891]
[1728446793137,2.72614314,2445.3,2445.2,5.1006891]
[1728446796252,2.72610615,2445.3,2445.2,5.1006891]
[1728446796615,2.29817674,2445.3,2445.2,5.1006891]
[1728446796811,1.28281985,2445.5,2445.4,4.08929]
[1728446797012,1.69635948,2445.8,2445.4,1.05454091]
[1728446797239,1.06033191,2445.7,2445.6,4.08897]
[1728446798253,1.69635948,2446.0,2445.7,4.08878]
[1728446798408,1.05998915,2445.9,2445.7,5.08019819]
[1728446798611,1.05998915,2445.8,2445.7,5.08019819]
[1728446798887,1.05998915,2445.9,2445.7,5.08019819]
[1728446799155,1.05998915,2445.8,2445.7,5.08019819]
[1728446800952,1.05951823,2445.8,2445.7,5.08019819]
[1728446801361,1.05951823,2445.8,2445.4,8.14382091]
[1728446801524,1.69635948,2445.8,2445.4,8.14382091]
[1728446801851,1.05951823,2445.7,2445.4,8.14382091]
[1728446802056,1.3946,2445.8,2445.5,1.35887809]
[1728446802353,1.76535384,2445.7,2445.5,1.35887809]
[1728446802520,0.70613071,2445.6,2445.5,1.35887809]
[1728446802850,0.70613071,2445.7,2445.5,1.35887809]
[1728446803052,1.76532818,2445.7,2445.5,1.35887809]
[1728446803659,1.76532818,2445.7,2445.5,5.44800809]
[1728446804265,1.76532818,2445.7,2445.5,9.53713809]
[1728446804472,1.76532818,2445.7,2445.6,1.25371381]
[1728446804660,1.76532818,2445.7,2445.5,4.08913]
[1728446805749,1.76577096,2445.6,2445.5,4.08913]
[1728446805950,1.76577096,2445.7,2445.5,4.08913]
[1728446806274,1.76577096,2445.6,2445.5,4.08913]
[1728446806469,3.04707099,2445.7,2445.5,4.08913]
[1728446806633,3.04707099,2445.7,2445.5,5.04254]
[1728446806833,2.62013082,2445.6,2445.5,5.04254]
[1728446807047,0.70630838,2445.6,2445.5,5.04254]
[1728446807266,1.56066824,2445.7,2445.5,5.04254]
[1728446807476,1.76606296,2445.7,2445.6,0.913184]
[1728446807964,1.83285755,2445.7,2445.6,0.913184]
[1728446809154,3.11415758,2445.7,2445.6,0.913184]
[1728446809362,3.11415758,2445.7,2445.5,5.04254]
[1728446809680,2.62053301,2445.6,2445.5,5.04254]
[1728446810045,2.6872238,2445.6,2445.5,5.04254]
[1728446813482,2.68745209,2445.6,2445.5,5.04254]
[1728446815780,2.68746326,2445.6,2445.5,5.04254]
[1728446815985,2.68746326,2445.6,2445.5,6.46544]
[1728446816286,0.77321176,2445.6,2445.5,6.46544]
[1728446816707,0.85447005,2445.7,2445.5,6.46544]
[1728446817023,0.85447005,2445.8,2445.6,4.735514]
[1728446817184,0.85447005,2445.9,2445.6,4.735514]
[1728446817520,1.91431684,2445.8,2445.6,4.735514]
[1728446817739,0.85447005,2445.9,2445.7,1.19838259]
[1728446817920,1.91428869,2445.8,2445.7,1.19838259]
[1728446818896,1.28130003,2446.0,2445.8,1.4229]
[1728446819108,0.85450386,2446.1,2445.9,2.58091835]
[1728446819307,1.28130003,2446.2,2445.9,1.7362819]
[1728446819308,0.85450386,2446.2,2445.9,1.7362819]
[1728446819833,0.50736166,2446.2,2446.1,5.51104]
[1728446820015,1.28130003,2446.5,2446.1,7.97205409]
[1728446820342,1.28130003,2446.4,2446.1,7.97205409]
[1728446820635,1.05991462,2446.3,2446.1,0.72473219]
[1728446820935,1.28130003,2446.4,2446.1,0.72473219]
[1728446821134,1.28130003,2446.4,2446.1,0.92563536]
[1728446821433,1.05957049,2446.3,2446.1,0.92563536]
[1728446821652,1.28130003,2446.5,2446.1,0.92563536]
[1728446821952,2.34082417,2446.5,2446.1,5.01376536]
[1728446822161,1.05952414,2446.4,2446.2,0.91019654]
[1728446822361,1.28130003,2446.5,2446.2,0.91019654]
[1728446823055,1.28130003,2446.7,2446.3,5.5106]
[1728446823225,1.05935809,2446.6,2446.3,5.5106]
[1728446823556,1.28130003,2446.7,2446.4,1.05086365]
[1728446823740,1.05911144,2446.6,2446.4,1.05086365]
[1728446823910,1.28130003,2446.7,2446.4,1.05086365]
[1728446824253,2.61090003,2446.8,2446.4,1.05086365]
[1728446824558,0.06106959,2446.6,2446.4,5.13849365]
[1728446824759,2.61090003,2446.8,2446.4,5.13849365]
[1728446824760,1.28130003,2446.8,2446.5,0.65613937]
[1728446824966,1.05889256,2446.7,2446.5,0.65613937]
[1728446825116,1.28130003,2446.8,2446.5,0.65613937]
[1728446825318,1.05890886,2446.7,2446.5,0.65613937]
[1728446825512,2.68830003,2446.9,2446.5,0.65613937]
[1728446825747,1.05859341,2446.8,2446.5,0.65613937]
[1728446825955,2.68830003,2446.9,2446.5,0.65613937]
[1728446826247,1.05861066,2446.8,2446.5,0.65613937]
[1728446826453,2.68830003,2446.9,2446.5,0.65613937]
[1728446826653,1.058374,2446.8,2446.5,0.65613937]
[1728446826828,2.68830003,2446.9,2446.5,0.65613937]
[1728446827021,1.05834101,2446.8,2446.5,0.65613937]
[1728446827221,2.68830003,2446.9,2446.5,0.65613937]
[1728446827455,1.05813261,2446.8,2446.5,0.65613937]
[1728446827659,2.68830003,2446.9,2446.5,0.65613937]
[1728446827860,1.05811468,2446.8,2446.5,0.65613937]
[1728446828161,2.68830003,2446.9,2446.5,0.65613937]
[1728446828315,1.05777049,2446.8,2446.5,0.65613937]
[1728446828522,2.68830003,2446.9,2446.5,0.65613937]
[1728446828749,1.05766868,2446.8,2446.5,0.65613937]
[1728446829111,1.407,2446.9,2446.5,0.65613937]
[1728446830030,2.25959727,2446.9,2446.5,0.65613937]
[1728446830508,1.90989532,2446.8,2446.5,0.65613937]
[1728446830806,2.25959727,2446.9,2446.5,0.65613937]
[1728446835416,2.25959727,2446.9,2446.5,4.74359937]
[1728446835727,6.34654727,2446.9,2446.4,4.08753]
[1728446837210,6.34654727,2446.9,2446.3,5.51069]
[1728446837402,0.85259727,2446.8,2446.3,1.4229]
[1728446837585,5.99635528,2446.8,2446.3,5.51068]
[1728446837787,0.06119317,2446.7,2446.3,1.4229]
[1728446838101,4.93960727,2446.8,2446.3,1.99406632]
[1728446838426,0.06119317,2446.7,2446.3,1.99406632]
[1728446838589,0.85259727,2446.8,2446.3,6.08185632]
[1728446838794,0.06119317,2446.7,2446.3,6.08185632]
[1728446838994,0.85259727,2446.8,2446.4,1.01697163]
[1728446839176,0.06119317,2446.7,2446.1,1.63840317]
[1728446839381,0.06119317,2446.7,2446.3,4.08779]
[1728446839382,0.85259727,2446.6,2446.3,4.08779]
[1728446839691,0.06098574,2446.5,2446.3,4.66040932]
[1728446840105,0.85259727,2446.7,2446.3,4.66040932]
[1728446840292,0.06088201,2446.4,2446.3,0.57261932]
[1728446840479,0.85259727,2446.7,2446.3,0.57261932]
[1728446840821,0.06108946,2446.6,2446.3,0.57261932]
[1728446841019,0.85259727,2446.7,2446.3,0.57261932]
[1728446841235,0.06108946,2446.6,2446.3,0.57261932]
[1728446845377,0.06108946,2446.6,2446.4,0.46604993]
[1728446845613,0.06108946,2446.6,2446.5,1.4521]
[1728446845818,0.85259727,2446.8,2446.5,1.4521]
[1728446846019,0.0611791,2446.7,2446.5,1.4521]
[1728446846182,0.85259727,2446.8,2446.5,1.4521]
[1728446846382,0.0611791,2446.7,2446.5,1.4521]
[1728446846622,0.85259727,2446.8,2446.5,1.4521]
[1728446846913,0.0611791,2446.7,2446.5,1.4521]
[1728446847224,0.85259727,2446.8,2446.5,1.4521]
[1728446847392,0.06118157,2446.7,2446.5,1.4521]
[1728446847729,0.85259727,2446.8,2446.5,1.98015629]
[1728446847948,0.06107786,2446.6,2446.5,1.98015629]
[1728446848107,0.85259727,2446.8,2446.5,1.98015629]
[1728446848309,0.06108036,2446.6,2446.5,1.98015629]
[1728446848504,0.85259727,2446.8,2446.5,1.98015629]
[1728446848710,0.06108036,2446.6,2446.5,1.98015629]
[1728446849008,0.05889036,2446.6,2446.5,1.98015629]
[1728446849211,0.85259727,2446.9,2446.5,1.98015629]
[1728446849416,0.05909611,2446.8,2446.5,1.98015629]
[1728446849614,0.05909611,2446.8,2446.6,0.65338262]
[1728446850147,0.05909611,2446.8,2446.6,8.82786262]
[1728446850440,0.05909611,2446.8,2446.6,4.74058262]
[1728446850618,0.05909611,2446.8,2446.7,4.08713]
[1728446851042,0.85259727,2447.0,2446.6,4.74058262]
[1728446851243,0.05920892,2446.9,2446.7,0.67207389]
[1728446852141,0.91180619,2446.9,2446.7,0.67207389]
[1728446852347,0.05920892,2446.9,2446.7,0.67207389]
[1728446852642,0.91180619,2446.9,2446.7,0.67207389]
[1728446857210,1.05853543,2446.8,2446.7,0.67207389]
[1728446857405,0.05912012,2446.8,2446.5,1.4521]
[1728446857651,4.08741,2446.6,2446.1,1.4316]
[1728446857958,0.85259727,2446.4,2446.1,1.4316]
[1728446858246,0.85259727,2446.4,2446.1,1.983581]
[1728446858247,0.05860068,2446.3,2446.1,1.983581]
[1728446858446,0.05860068,2446.3,2446.1,6.071601]
[1728446858650,0.05860068,2446.3,2446.1,1.983581]
[1728446859214,1.91147885,2446.2,2445.8,5.41654]
[1728446859440,0.05838574,2446.1,2445.8,5.41654]
[1728446860363,0.05838574,2446.1,2445.8,5.62087675]
[1728446860852,0.05838574,2446.1,2445.9,0.56208768]
[1728446862250,0.91098301,2446.1,2445.9,0.56208768]
[1728446862618,0.05838574,2446.1,2445.9,0.56208768]
[1728446863023,1.11793079,2446.1,2445.9,0.56208768]
[1728446863250,0.91098301,2446.1,2445.9,0.56208768]
[1728446864359,0.91098301,2446.1,2446.0,0.61829644]
[1728446865159,1.97085624,2446.1,2446.0,0.61829644]
[1728446867596,0.05838574,2446.1,2446.0,0.61829644]
[1728446868699,0.05838574,2446.1,2446.0,4.70659644]
[1728446869658,0.85259727,2446.3,2446.0,0.61829644]
[1728446869860,0.05845883,2446.2,2446.1,4.08809]
[1728446870065,0.85259727,2446.3,2446.1,5.14120283]
[1728446870409,0.05843647,2446.2,2446.1,9.22929283]
[1728446870699,0.85259727,2446.3,2446.1,9.22929283]
[1728446870700,0.85259727,2446.3,2446.1,5.14120283]
[1728446870857,0.05843647,2446.2,2446.1,5.14120283]
[1728446871053,0.85259727,2446.3,2446.1,5.14120283]
[1728446871299,0.05843897,2446.2,2446.1,5.14120283]
[1728446871470,0.85259727,2446.3,2446.1,5.14120283]
[1728446871812,1.69635948,2446.5,2446.1,5.14120283]
[1728446871813,0.63944795,2446.6,2446.4,4.08754]
[1728446872107,2.69500003,2446.8,2446.4,4.08754]
[1728446872257,1.05962595,2446.7,2446.4,5.21360219]
[1728446872458,2.69500003,2446.8,2446.5,4.08743]
[1728446872687,2.69500003,2446.8,2446.5,4.08733]
[1728446872892,2.69500003,2446.8,2446.5,5.19107041]
[1728446873087,1.28130003,2446.8,2446.6,4.08728]
[1728446873459,1.69635948,2446.9,2446.7,4.0871]
[1728446873460,1.28130003,2446.9,2446.7,4.0871]
[1728446874220,2.68530003,2447.0,2446.7,4.0871]
[1728446874429,1.28130003,2446.9,2446.7,4.0871]
[1728446874786,2.68530003,2447.0,2446.7,4.0871]
[1728446875188,1.28130003,2446.9,2446.7,4.0871]
[1728446875384,2.68530003,2447.0,2446.7,5.01491704]
[1728446876007,1.28130003,2447.0,2446.7,9.10194704]
[1728446876626,1.28130003,2447.0,2446.7,5.01484704]
[1728446880727,1.28130003,2447.0,2446.7,0.92781704]
[1728446880914,1.28130003,2447.0,2446.6,1.4607]
[1728446880915,1.28130003,2446.9,2446.6,1.4607]
[1728446881490,1.28130003,2447.0,2446.6,1.4607]
[1728446881690,0.853523,2446.8,2446.6,1.4607]
[1728446882230,2.13482303,2446.9,2446.6,5.54797]
[1728446882422,0.853523,2446.9,2446.7,4.641927]
[1728446882919,0.05713532,2446.8,2446.7,4.641927]
[1728446883108,0.05713532,2446.8,2446.7,0.554797]
[1728446887430,0.853523,2446.9,2446.7,4.641927]
[1728446887629,0.05713028,2446.8,2446.7,4.641927]
[1728446887935,0.05713028,2446.8,2446.7,0.554797]
[1728446889660,0.05713028,2446.8,2446.7,4.641927]
[1728446890782,0.853523,2446.9,2446.7,4.641927]
[1728446891070,0.853523,2447.0,2446.8,1.0189797]
[1728446891632,0.853523,2446.9,2446.8,1.0189797]
[1728446891833,0.853523,2447.0,2446.8,1.0189797]
[1728446892032,0.853523,2446.9,2446.8,1.0189797]
[1728446893358,0.853523,2447.0,2446.8,1.0189797]
[1728446893834,2.13482303,2447.0,2446.8,1.0189797]
[1728446894156,0.853523,2446.9,2446.8,1.0189797]
[1728446894753,0.853523,2447.0,2446.8,1.0189797]
[1728446895140,0.853523,2446.9,2446.8,1.0189797]
[1728446900463,0.05722898,2446.9,2446.6,5.54787]
[1728446901506,0.91075198,2446.9,2446.6,5.54787]
[1728446902190,2.312723,2446.8,2446.3,3.0]
[1728446902398,2.312723,2446.8,2446.7,1.3523]
[1728446902399,0.853523,2446.8,2446.7,1.3523]
[1728446902708,0.853523,2446.9,2446.7,1.3523]
[1728446903406,0.853523,2447.0,2446.7,1.3523]
[1728446904106,0.853523,2446.9,2446.7,1.3523]
[1728446904335,0.853523,2446.9,2446.7,1.89625]
[1728446906041,5.45926,2446.8,2446.3,2.549336]
[1728446906254,0.853523,2446.6,2446.1,8.48317]
[1728446906407,0.853523,2446.6,2446.3,4.08779]
[1728446906740,0.853523,2446.6,2446.3,5.344886]
[1728446907048,0.42698004,2446.5,2446.3,5.344886]
[1728446908561,0.42698004,2446.5,2446.3,9.432676]
[1728446908722,0.42698004,2446.5,2446.3,5.344886]
[1728446912961,0.05667694,2446.4,2446.3,5.344886]
[1728446927019,0.05667694,2446.4,2446.3,6.739186]
[1728446927172,0.05667694,2446.4,2446.3,9.739186]
[1728446928011,0.42698004,2446.5,2446.4,5.43593]
[1728446928176,0.42698004,2446.5,2446.4,9.13271669]
[1728446928587,0.47989756,2446.5,2446.4,9.13271669]
[1728446929498,0.42698004,2446.5,2446.4,9.13271669]
[1728446930583,0.853523,2446.8,2446.7,4.08713]
[1728446930787,1.28130003,2446.9,2446.8,5.42397]
[1728446930788,0.853523,2446.9,2446.8,5.42397]
[1728446931108,2.13482303,2447.3,2447.1,4.08646]
[1728446931286,0.853523,2447.3,2447.1,5.8227419]
[1728446931684,0.853523,2447.4,2447.1,5.8227419]
[1728446931888,0.853523,2447.4,2447.3,4.08613]
[1728446932120,0.8540749,2447.4,2447.3,5.07701719]
[1728446932533,1.28130003,2447.5,2447.3,5.07701719]
[1728446932534,0.8540749,2447.5,2447.4,4.08596]
[1728446932827,0.8540749,2447.6,2447.4,4.08596]
[1728446933182,0.8540749,2447.7,2447.6,4.08563]
[1728446933384,0.85383068,2447.8,2447.6,4.902773]
[1728446934184,0.85383068,2447.8,2447.6,0.817143]
[1728446935634,2.26033068,2447.9,2447.6,0.817143]
[1728446936100,2.26033068,2447.9,2447.3,11.10398366]
[1728446936305,0.85383068,2447.8,2447.3,7.01794366]
[1728446936541,0.85383068,2447.8,2447.3,5.28166176]
[1728446936843,2.26033068,2447.9,2447.5,4.08578]
[1728446937846,2.26033068,2447.9,2447.3,7.01794366]
[1728446938002,6.34550068,2447.9,2447.4,0.83679437]
[1728446938415,1.4065,2447.9,2447.4,4.92262437]
[1728446938623,2.26033068,2447.9,2447.4,4.92262437]
[1728446939133,6.34546068,2447.9,2447.4,0.83679437]
[1728446941831,5.49163,2447.9,2447.4,0.83679437]
[1728446942980,0.05084549,2447.8,2447.4,0.83679437]
[1728446943482,0.05084549,2447.8,2447.4,4.92270437]
[1728446944784,0.05084549,2447.8,2447.5,9.41512789]
[1728446945081,1.4042,2448.1,2447.8,4.08528]
[1728446945966,1.4042,2448.1,2447.9,4.0851]
[1728446946941,1.4042,2448.1,2447.8,4.08528]
[1728446947139,1.4042,2448.3,2447.9,0.408528]
[1728446947343,1.4042,2448.3,2447.8,4.0852]
[1728446948741,1.4042,2448.3,2447.8,8.1704]
[1728446949278,1.4042,2448.3,2447.8,4.0852]
[1728446950800,1.4042,2448.3,2447.8,8.1704]
[1728446950999,1.4042,2448.3,2447.8,4.0852]
[1728446951198,1.4042,2448.3,2447.8,4.49372]
[1728446952083,1.4042,2448.3,2447.8,8.57891]
[1728446952286,1.4042,2448.3,2447.8,4.49371]
[1728446952497,2.25803068,2448.6,2448.3,4.08446]
[1728446952703,1.4042,2448.6,2448.3,5.49255]
[1728446952901,2.25803068,2448.8,2448.3,5.49255]
[1728446953103,1.4042,2448.8,2448.4,4.08429]
[1728446953268,1.4042,2448.8,2448.4,4.0842]
[1728446954001,1.4,2449.0,2448.6,4.08393]
[1728446954507,1.4,2449.0,2448.5,4.08409]
[1728446955168,1.4,2449.0,2448.6,4.08395]
[1728446955372,1.4,2449.2,2448.7,5.856735]
[1728446955564,1.4,2449.2,2448.7,5.44834]
[1728446955766,1.4,2449.2,2448.7,1.3646]
[1728446956304,1.4,2449.2,2448.4,6.7781779]
[1728446956305,4.08323,2449.1,2448.5,4.08411]
[1728446956865,5.48311,2449.2,2448.6,8.43967]
[1728446957093,5.48311,2449.2,2448.7,4.927717]
[1728446957824,1.4,2449.2,2448.7,4.927717]
[1728446958034,0.05051647,2449.1,2448.8,4.08362]
[1728446958335,0.05051647,2449.1,2448.8,5.4203497]
[1728446960220,0.05051647,2449.1,2448.8,1.3367297]
[1728446961013,0.05051647,2449.1,2448.6,7.08391]
[1728446961525,1.4524,2448.9,2448.5,4.08408]
[1728446961929,0.04856108,2448.8,2448.5,4.08408]
[1728446965444,0.04856108,2448.8,2448.6,8.16771]
[1728446965646,0.04856108,2448.8,2448.7,0.816771]
[1728446966012,5.53565,2449.1,2448.5,4.08412]
[1728446966415,1.4524,2449.1,2448.6,4.08395]
[1728446966611,0.04828792,2448.8,2448.6,4.08395]
[1728446966814,1.4524,2449.1,2448.6,4.08395]
[1728446967058,0.04818522,2448.7,2448.6,4.9965336]
[1728446967210,1.4524,2449.1,2448.6,4.9965336]
[1728446967411,0.04818522,2448.7,2448.6,4.9965336]
[1728446967714,5.53554,2449.1,2448.6,0.9125836]
[1728446967930,0.04820542,2448.7,2448.6,0.9125836]
[1728446968132,5.53554,2449.1,2448.6,0.9125836]
[1728446968335,0.04820458,2448.7,2448.6,0.9125836]
[1728446968537,5.53554,2449.1,2448.6,0.9125836]
[1728446968709,0.04820458,2448.7,2448.6,0.9125836]
[1728446968910,5.53554,2449.1,2448.6,0.9125836]
[1728446969411,0.04851516,2449.0,2448.6,0.9125836]
[1728446970810,0.04851516,2449.0,2448.6,4.9965336]
[1728446972313,0.04851516,2449.0,2448.6,0.9125836]
[1728446972541,4.13182516,2449.0,2448.5,4.08412]
[1728446972728,0.04851516,2449.0,2448.6,4.08396]
[1728446973157,0.04851516,2449.0,2448.4,5.041836]
[1728446973451,0.04851516,2449.0,2448.5,4.0841]
[1728446974616,4.13191516,2449.0,2448.4,5.041836]
[1728446975663,4.13191516,2449.0,2448.4,9.126046]
[1728446976524,1.3962,2448.9,2448.4,5.041836]
[1728446976715,1.3962,2448.9,2448.4,9.126026]
[1728446976942,0.0465657,2448.8,2448.4,5.041836]
[1728446977147,0.0465657,2448.8,2448.5,0.66063637]
[1728446977949,0.0465657,2448.8,2448.5,4.74471637]
[1728446978146,0.0465657,2448.8,2448.5,0.66063637]
[1728446979055,0.0465657,2448.8,2448.5,4.74475637]
[1728446980947,0.0465657,2448.8,2448.5,0.66063637]
[1728446981977,0.0465657,2448.8,2448.5,4.74472637]
[1728446982346,0.0465657,2448.8,2448.1,39.7362819]
[1728446982347,4.08413,2448.5,2448.0,4.08486]
[1728446982654,1.4769,2448.0,2447.7,4.08546]
[1728446982859,1.4769,2448.0,2447.6,4.08563]
[1728446983044,0.04338283,2447.9,2447.7,4.08544]
[1728446983268,0.04338283,2447.9,2447.8,5.5143]
[1728446983663,1.478,2448.4,2448.0,4.08491]
[1728446983862,1.478,2448.4,2448.1,0.408491]
[1728446984095,0.04438102,2448.3,2448.1,0.408491]
[1728446985173,0.04438102,2448.3,2447.9,4.08512]
[1728446986260,0.04438102,2448.3,2447.8,1.429]
[1728446986465,0.04438102,2448.3,2447.8,5.51429]
[1728446987967,0.04438102,2448.3,2447.8,9.59949]
[1728446988502,0.04438102,2448.3,2448.0,4.08492]
[1728446988799,0.04438102,2448.3,2448.1,0.408492]
[1728446989301,0.04438102,2448.3,2448.1,4.493272]
[1728446989670,5.49144,2448.6,2448.1,4.493272]
[1728446989866,0.04040122,2448.2,2448.1,0.408492]
[1728446990070,5.49144,2448.6,2448.1,0.408492]
[1728446990302,0.04040122,2448.2,2448.1,0.408492]
[1728446990507,5.49144,2448.6,2448.1,0.408492]
[1728446990508,6.34527068,2448.6,2448.1,0.408492]
[1728446990683,0.04040122,2448.2,2448.1,0.408492]
[1728446990895,6.34527068,2448.6,2448.1,0.408492]
[1728446991107,0.04040122,2448.2,2448.1,0.408492]
[1728446991289,6.34527068,2448.6,2448.1,0.408492]
[1728446991488,0.04040122,2448.2,2448.1,0.408492]
[1728446991714,6.34527068,2448.6,2448.1,0.408492]
[1728446991922,0.04040122,2448.2,2448.1,0.408492]
[1728446992394,6.34527068,2448.6,2448.1,0.408492]
[1728446992584,0.04071192,2448.5,2448.1,0.408492]
[1728446994615,0.04071192,2448.5,2448.1,0.61699574]
[1728446994820,0.04071192,2448.5,2448.2,0.47018457]
[1728446995820,0.8945426,2448.5,2448.2,0.47018457]
[1728446998185,0.85383068,2448.4,2448.2,0.47018457]
[1728446998394,0.04052316,2448.3,2448.2,0.47018457]
[1728447000329,0.85383068,2448.5,2448.2,0.47018457]
[1728447000491,0.04052316,2448.3,2448.2,0.47018457]
[1728447000693,0.85383068,2448.5,2448.2,0.47018457]
[1728447000936,0.03916395,2448.3,2448.2,0.47018457]
[1728447001098,0.85383068,2448.5,2448.2,0.47018457]
[1728447001293,0.03916395,2448.3,2448.2,0.47018457]
[1728447001496,0.85383068,2448.5,2448.2,0.47018457]
[1728447002023,0.03926752,2448.4,2448.2,0.47018457]
[1728447003105,0.03926752,2448.4,2448.3,0.49634466]
[1728447003834,0.85383068,2448.6,2448.3,4.58080466]
[1728447004053,0.0379501,2448.4,2448.3,4.58080466]
[1728447004192,0.85383068,2448.6,2448.3,4.58080466]
[1728447004394,0.03805366,2448.5,2448.4,1.05042792]
[1728447014266,0.03805366,2448.5,2448.2,5.45319]
[1728447015416,0.85383068,2448.6,2448.2,5.45319]
[1728447017826,0.85383068,2448.6,2448.2,9.53772]
[1728447018028,0.85383068,2448.6,2448.3,4.08438]
[1728447019237,0.85383068,2448.6,2448.2,5.45319]
[1728447019238,0.85383068,2448.6,2448.2,9.53773]
[1728447019455,0.85383068,2448.6,2448.3,0.953773]
[1728447019652,0.03893183,2448.5,2448.3,0.953773]
[1728447023837,0.03893183,2448.5,2448.3,5.038183]
[1728447024034,0.03893183,2448.5,2448.4,4.08429]
[1728447024242,0.85383068,2448.7,2448.4,4.08429]
[1728447024442,0.85383068,2448.7,2448.5,1.08588049]
[1728447025938,0.85383068,2448.7,2448.5,5.16993049]
[1728447026375,0.85383068,2448.7,2448.5,1.08588049]
[1728447027787,0.85383068,2448.7,2448.5,5.16996049]
[1728447028482,0.85383068,2448.7,2448.5,1.08588049]
[1728447028784,0.85383068,2448.7,2448.6,0.92542905]
[1728447030383,1.28130003,2448.7,2448.6,0.92542905]
[1728447030543,0.85462339,2448.7,2448.3,3.0]
[1728447030863,0.85462339,2448.7,2448.4,4.08426]
[1728447032285,0.07704255,2448.6,2448.4,4.08426]
[1728447032441,0.07704255,2448.6,2448.4,5.338004]
[1728447032957,0.93166594,2448.6,2448.4,5.338004]
[1728447033156,0.07704255,2448.6,2448.4,5.338004]
[1728447033580,0.07704255,2448.6,2448.4,1.253744]
[1728447033878,0.93166594,2448.6,2448.3,3.0]
[1728447035080,0.93166594,2448.6,2448.3,7.08442]
[1728447036862,0.93166594,2448.6,2448.4,4.08423]
[1728447041910,0.93166594,2448.6,2448.5,4.08413]
[1728447042600,0.93166594,2448.6,2448.4,4.08428]
[1728447042799,0.93166594,2448.6,2448.4,4.929592]
[1728447043301,0.93166594,2448.6,2448.4,0.845312]
[1728447043508,0.93166594,2448.6,2448.3,7.08442]
[1728447044710,0.93166594,2448.6,2448.2,3.0]
[1728447045011,0.85462339,2448.5,2448.2,7.08454]
[1728447045216,0.85462339,2448.5,2448.2,4.08462]
[1728447045529,2.4070959,2448.4,2448.1,4.08464]
[1728447045821,0.85462339,2448.3,2448.1,4.08464]
[1728447045978,0.85462339,2448.3,2448.2,0.551914]
[1728447046491,0.85462339,2448.3,2448.2,4.636544]
[1728447046694,0.85462339,2448.4,2448.2,4.636544]
[1728447047974,0.07524525,2448.3,2448.2,4.636544]
[1728447054516,0.85462339,2448.4,2448.2,4.636544]
[1728447054726,0.85462339,2448.4,2448.3,4.5481144]
[1728447057519,0.85462339,2448.5,2448.3,4.5481144]
[1728447057813,0.85462339,2448.4,2448.3,0.4636544]
[1728447058018,0.85462339,2448.5,2448.3,4.5481144]